[Event "NJSK 2026 Jeugd A"]
[Site "Helmond, Netherlands"]
[Date "2026.04.26"]
[Round "2.4"]
[White "Kazarjan, Gachatur"]
[Black "Ritzerveld, Noah"]
[Result "0-1"]
[TimeControl "90min/40moves + 30min + 30sec/move"]
[WhiteTitle "-"]
[BlackTitle "-"]
[WhiteFideId "1068750"]
[BlackFideId "1085760"]
[WhiteElo "2272"]
[BlackElo "2205"]

1. e4 {[%clk 01:30:46]} {[%emt 00:00:13]} e5 {[%clk 01:30:50]} {[%emt
00:00:11]} 2. Nf3 {[%clk 01:30:59]} {[%emt 00:00:16]} Nc6 {[%clk 01:31:07]}
{[%emt 00:00:13]} 3. Bc4 {[%clk 01:31:20]} {[%emt 00:00:09]} Nf6 {[%clk
01:31:30]} {[%emt 00:00:07]} 4. d3 {[%clk 01:31:46]} {[%emt 00:00:04]} Bc5
{[%clk 01:31:54]} {[%emt 00:00:06]} 5. a4 {[%clk 01:32:11]} {[%emt 00:00:05]}
d6 {[%clk 01:28:03]} {[%emt 00:04:21]} 6. a5 {[%clk 01:32:21]} {[%emt
00:00:21]} a6 {[%clk 01:26:48]} {[%emt 00:01:45]} 7. O-O {[%clk 01:32:24]}
{[%emt 00:00:25]} h6 {[%clk 01:23:55]} {[%emt 00:03:23]} 8. c3 {[%clk
01:32:49]} {[%emt 00:00:05]} O-O {[%clk 01:23:16]} {[%emt 00:01:09]} 9. h3
{[%clk 01:32:37]} {[%emt 00:00:42]} Ba7 {[%clk 01:18:59]} {[%emt 00:04:47]} 10.
Re1 {[%clk 01:32:23]} {[%emt 00:00:44]} Re8 {[%clk 01:17:20]} {[%emt 00:02:10]}
11. Nbd2 {[%clk 01:28:04]} {[%emt 00:04:49]} Be6 {[%clk 01:15:28]} {[%emt
00:02:22]} 12. Bxe6 {[%clk 01:25:45]} {[%emt 00:02:49]} Rxe6 {[%clk 01:15:12]}
{[%emt 00:00:46]} 13. Nf1 {[%clk 01:25:59]} {[%emt 00:00:15]} d5 {[%clk
01:12:56]} {[%emt 00:02:46]} 14. Qc2 {[%clk 01:23:24]} {[%emt 00:03:05]} Qd7
{[%clk 01:09:00]} {[%emt 00:04:26]} 15. Ng3 {[%clk 01:21:58]} {[%emt 00:01:56]}
Rd8 {[%clk 01:08:05]} {[%emt 00:01:25]} 16. Qb3 {[%clk 01:16:55]} {[%emt
00:05:33]} Qc8 {[%clk 00:57:04]} {[%emt 00:11:32]} 17. Nf5 {[%clk 00:44:00]}
{[%emt 00:33:24]} Kh7 {[%clk 00:45:27]} {[%emt 00:12:07]} 18. Qc2 {[%clk
00:38:05]} {[%emt 00:06:24]} dxe4 {[%clk 00:39:59]} {[%emt 00:06:00]} 19. dxe4
{[%clk 00:38:29]} {[%emt 00:00:05]} Qd7 {[%clk 00:39:42]} {[%emt 00:00:47]} 20.
Be3 {[%clk 00:37:19]} {[%emt 00:01:39]} Qd3 {[%clk 00:37:24]} {[%emt 00:02:49]}
21. Qb3 {[%clk 00:36:24]} {[%emt 00:01:25]} Bxe3 {[%clk 00:33:22]} {[%emt
00:04:31]} 22. Rxe3 {[%clk 00:35:07]} {[%emt 00:01:47]} Qb5 {[%clk 00:33:09]}
{[%emt 00:00:44]} 23. Qa2 {[%clk 00:28:20]} {[%emt 00:07:17]} g6 {[%clk
00:32:33]} {[%emt 00:01:06]} 24. Ng3 {[%clk 00:27:50]} {[%emt 00:00:59]} Kg7
{[%clk 00:32:47]} {[%emt 00:00:17]} 25. b4 {[%clk 00:27:12]} {[%emt 00:01:08]}
Ne7 {[%clk 00:26:16]} {[%emt 00:07:02]} 26. Rb1 {[%clk 00:23:53]} {[%emt
00:03:48]} Qe8 {[%clk 00:21:12]} {[%emt 00:05:34]} 27. Qc4 {[%clk 00:19:26]}
{[%emt 00:04:57]} Rc6 {[%clk 00:18:00]} {[%emt 00:03:43]} 28. Qb3 {[%clk
00:18:45]} {[%emt 00:01:09]} Nc8 {[%clk 00:17:41]} {[%emt 00:00:50]} 29. Qc2
{[%clk 00:08:35]} {[%emt 00:10:40]} Nd6 {[%clk 00:17:47]} {[%emt 00:00:24]} 30.
Nd2 {[%clk 00:08:39]} {[%emt 00:00:25]} Nb5 {[%clk 00:16:45]} {[%emt 00:01:34]}
31. Qb2 {[%clk 00:08:48]} {[%emt 00:00:22]} Rcd6 {[%clk 00:15:25]} {[%emt
00:01:50]} 32. Nb3 {[%clk 00:06:29]} {[%emt 00:02:48]} Qc6 {[%clk 00:13:43]}
{[%emt 00:02:11]} 33. Rc1 {[%clk 00:03:48]} {[%emt 00:03:12]} Qc4 {[%clk
00:12:53]} {[%emt 00:01:20]} 34. Nc5 {[%clk 00:03:03]} {[%emt 00:01:15]} b6
{[%clk 00:07:54]} {[%emt 00:05:29]} 35. Qb3 {[%clk 00:02:46]} {[%emt 00:00:47]}
Qxb3 {[%clk 00:07:25]} {[%emt 00:00:59]} 36. Nxb3 {[%clk 00:03:14]} {[%emt
00:00:01]} Rd1+ {[%clk 00:07:29]} {[%emt 00:00:27]} 37. Rxd1 {[%clk 00:03:03]}
{[%emt 00:00:42]} Rxd1+ {[%clk 00:07:54]} {[%emt 00:00:04]} 38. Kh2 {[%clk
00:03:11]} {[%emt 00:00:22]} Nd6 {[%clk 00:06:40]} {[%emt 00:01:44]} 39. f3
{[%clk 00:01:29]} {[%emt 00:02:12]} Nc4 {[%clk 00:04:11]} {[%emt 00:02:59]} 40.
Re2 {[%clk 00:01:58]} Rb1 {[%clk 00:03:20]} {[%emt 00:01:22]} 41. Nd2 {[%clk
00:01:28]} {[%emt 00:01:01]} Nxd2 {[%clk 00:03:13]} {[%emt 00:00:36]} 42. Rxd2
{[%clk 00:01:52]} {[%emt 00:00:05]} bxa5 {[%clk 00:02:58]} {[%emt 00:00:46]} 43.
Ra2 {[%clk 00:00:52]} {[%emt 00:01:29]} axb4 {[%clk 00:02:37]} {[%emt
00:00:52]} 44. cxb4 {[%clk 00:01:15]} {[%emt 00:00:07]} Rxb4 {[%clk 00:02:40]}
{[%emt 00:00:28]} 45. Rxa6 {[%clk 00:01:40]} {[%emt 00:00:04]} Ne8 {[%clk
00:25:13]} {[%emt 00:07:57]} 46. Nf1 {[%clk 00:30:33]} {[%emt 00:01:35]} Rb3
{[%clk 00:21:44]} {[%emt 00:04:00]} 47. Rc6 {[%clk 00:30:03]} {[%emt 00:01:01]}
f6 {[%clk 00:20:28]} {[%emt 00:01:46]} 48. Nd2 {[%clk 00:29:56]} {[%emt
00:00:36]} Rd3 {[%clk 00:19:28]} {[%emt 00:01:30]} 49. Nb1 {[%clk 00:30:07]}
{[%emt 00:00:19]} Rd6 {[%clk 00:19:18]} {[%emt 00:00:41]} 50. Rc5 {[%clk
00:30:17]} {[%emt 00:00:20]} Kf7 {[%clk 00:18:30]} {[%emt 00:01:17]} 51. Na3
{[%clk 00:30:17]} {[%emt 00:00:30]} Ra6 {[%clk 00:17:04]} {[%emt 00:01:56]} 52.
Nc2 {[%clk 00:29:01]} {[%emt 00:01:46]} Ke6 {[%clk 00:16:24]} {[%emt 00:01:11]}
53. Kg3 {[%clk 00:29:08]} {[%emt 00:00:23]} f5 {[%clk 00:13:47]} {[%emt
00:03:06]} 54. Nb4 {[%clk 00:23:15]} {[%emt 00:06:24]} Rd6 {[%clk 00:09:12]}
{[%emt 00:05:05]} 55. f4 {[%clk 00:12:06]} {[%emt 00:11:38]} exf4+ {[%clk
00:08:16]} {[%emt 00:01:26]} 56. Kxf4 {[%clk 00:12:09]} {[%emt 00:00:27]} Rd4
{[%clk 00:06:46]} {[%emt 00:02:00]} 57. Re5+ {[%clk 00:11:39]} {[%emt
00:01:00]} Kd6 {[%clk 00:03:29]} {[%emt 00:03:47]} 58. Rd5+ {[%clk 00:10:59]}
{[%emt 00:01:11]} Rxd5 {[%clk 00:03:54]} {[%emt 00:00:05]} 59. Nxd5 {[%clk
00:11:24]} {[%emt 00:00:04]} fxe4 {[%clk 00:04:17]} {[%emt 00:00:08]} 60. Kxe4
{[%clk 00:11:49]} {[%emt 00:00:04]} c6 {[%clk 00:03:59]} {[%emt 00:00:48]} 61.
Nf4 {[%clk 00:10:34]} {[%emt 00:01:45]} Nf6+ {[%clk 00:04:24]} {[%emt
00:00:05]} 62. Kd4 {[%clk 00:10:29]} {[%emt 00:00:35]} c5+ {[%clk 00:04:31]}
{[%emt 00:00:23]} 63. Kc4 {[%clk 00:09:43]} {[%emt 00:01:15]} g5 {[%clk
00:04:50]} {[%emt 00:00:11]} 64. Nd3 {[%clk 00:10:05]} {[%emt 00:00:08]} Ne4
{[%clk 00:03:30]} {[%emt 00:01:50]} 65. Ne1 {[%clk 00:09:24]} {[%emt 00:01:11]}
Ke5 {[%clk 00:02:13]} {[%emt 00:01:48]} 66. Nd3+ {[%clk 00:09:38]} {[%emt
00:00:16]} Kf5 {[%clk 00:01:59]} {[%emt 00:00:44]} 67. Kd5 {[%clk 00:09:28]}
{[%emt 00:00:39]} Nf6+ {[%clk 00:00:47]} {[%emt 00:01:43]} 68. Kxc5 {[%clk
00:09:12]} {[%emt 00:00:45]} Ke4 {[%clk 00:01:16]} {[%emt 00:00:01]} 69. Kc4
{[%clk 00:05:50]} {[%emt 00:03:53]} Ke3 {[%clk 00:01:16]} {[%emt 00:00:29]} 70.
Ne5 {[%clk 00:03:20]} {[%emt 00:03:01]} Kf2 {[%clk 00:01:06]} {[%emt 00:00:40]}
71. Nf7 {[%clk 00:03:38]} {[%emt 00:00:12]} Ng8 {[%clk 00:01:19]} {[%emt
00:00:17]} 72. Kd4 {[%clk 00:02:01]} {[%emt 00:02:07]} Kxg2 {[%clk 00:01:44]}
{[%emt 00:00:04]} 73. Ke4 {[%clk 00:02:27]} {[%emt 00:00:04]} Kxh3 {[%clk
00:01:51]} {[%emt 00:00:24]} 74. Ne5 {[%clk 00:02:20]} {[%emt 00:00:36]} g4
{[%clk 00:01:24]} {[%emt 00:00:58]} 75. Ke3 {[%clk 00:02:41]} {[%emt 00:00:09]}
g3 {[%clk 00:00:54]} {[%emt 00:01:00]} 76. Nf3 {[%clk 00:01:53]} {[%emt
00:01:17]} Nf6 {[%clk 00:01:04]} {[%emt 00:00:21]} 77. Ne1 {[%clk 00:02:09]}
{[%emt 00:00:14]} Ng4+ {[%clk 00:01:12]} {[%emt 00:00:22]} 78. Kf3 {[%clk
00:02:25]} {[%emt 00:00:13]} Ne5+ {[%clk 00:01:35]} {[%emt 00:00:07]} 79. Ke2
{[%clk 00:02:26]} {[%emt 00:00:29]} Kh2 {[%clk 00:01:36]} {[%emt 00:00:29]} 80.
Kf1 {[%clk 00:02:44]} {[%emt 00:00:12]} h5 {[%clk 00:01:59]} {[%emt 00:00:06]}
81. Ng2 {[%clk 00:03:07]} {[%emt 00:00:07]} Nf3 {[%clk 00:02:17]} {[%emt
00:00:13]} 82. Nf4 {[%clk 00:03:18]} {[%emt 00:00:19]} Nd2+ {[%clk 00:02:42]}
{[%emt 00:00:06]} 0-1

[Event "NJSK 2026 Jeugd A"]
[Site "Helmond, Netherlands"]
[Date "2026.04.26"]
[Round "2.5"]
[White "Dinanath, Hrdya"]
[Black "Kshirsagar, Pranav"]
[Result "1/2-1/2"]
[TimeControl "90min/40moves + 30min + 30sec/move"]
[WhiteTitle "-"]
[BlackTitle "-"]
[WhiteFideId "1087991"]
[BlackFideId "1084011"]
[WhiteElo "2107"]
[BlackElo "2148"]

1. e4 {[%clk 01:30:57]} {[%emt 00:00:04]} c6 {[%clk 01:30:57]} {[%emt
00:00:03]} 2. d4 {[%clk 01:31:21]} {[%emt 00:00:05]} d5 {[%clk 01:30:43]}
{[%emt 00:00:45]} 3. Nd2 {[%clk 01:31:45]} {[%emt 00:00:05]} dxe4 {[%clk
01:31:10]} {[%emt 00:00:04]} 4. Nxe4 {[%clk 01:32:08]} {[%emt 00:00:07]} Nf6
{[%clk 01:31:36]} {[%emt 00:00:04]} 5. Nxf6+ {[%clk 01:32:29]} {[%emt
00:00:09]} exf6 {[%clk 01:32:00]} {[%emt 00:00:05]} 6. c3 {[%clk 01:32:52]}
{[%emt 00:00:07]} Bd6 {[%clk 01:32:25]} {[%emt 00:00:04]} 7. Bd3 {[%clk
01:33:13]} {[%emt 00:00:10]} O-O {[%clk 01:32:50]} {[%emt 00:00:06]} 8. Qc2
{[%clk 01:33:37]} {[%emt 00:00:06]} Re8+ {[%clk 01:33:15]} {[%emt 00:00:05]} 9.
Ne2 {[%clk 01:34:02]} {[%emt 00:00:05]} h5 {[%clk 01:33:44]} {[%emt 00:00:02]}
10. O-O {[%clk 01:34:19]} {[%emt 00:00:12]} h4 {[%clk 01:34:11]} {[%emt
00:00:02]} 11. h3 {[%clk 01:34:40]} {[%emt 00:00:09]} Nd7 {[%clk 01:34:39]}
{[%emt 00:00:02]} 12. Be3 {[%clk 01:35:01]} {[%emt 00:00:09]} Nf8 {[%clk
01:35:05]} {[%emt 00:00:05]} 13. Rad1 {[%clk 01:35:16]} {[%emt 00:00:14]} Be6
{[%clk 01:35:30]} {[%emt 00:00:05]} 14. c4 {[%clk 01:35:22]} {[%emt 00:00:24]}
Ng6 {[%clk 01:35:10]} {[%emt 00:00:50]} 15. d5 {[%clk 01:06:26]} {[%emt
00:29:27]} cxd5 {[%clk 01:35:35]} {[%emt 00:00:05]} 16. cxd5 {[%clk 01:06:52]}
{[%emt 00:00:04]} Rc8 {[%clk 01:36:00]} {[%emt 00:00:05]} 17. Qb1 {[%clk
01:06:19]} {[%emt 00:01:03]} Bd7 {[%clk 01:27:05]} {[%emt 00:09:24]} 18. Bxg6
{[%clk 00:55:11]} {[%emt 00:11:39]} fxg6 {[%clk 01:27:28]} {[%emt 00:00:06]} 19.
Nd4 {[%clk 00:54:19]} {[%emt 00:01:22]} Kf7 {[%clk 00:55:55]} {[%emt 00:32:03]}
20. Ne6 {[%clk 00:39:14]} {[%emt 00:15:35]} Bxe6 {[%clk 00:50:07]} {[%emt
00:06:18]} 21. dxe6+ {[%clk 00:39:19]} {[%emt 00:00:25]} Rxe6 {[%clk 00:50:33]}
{[%emt 00:00:05]} 22. Qd3 {[%clk 00:37:43]} {[%emt 00:02:05]} a6 {[%clk
00:24:17]} {[%emt 00:26:47]} 23. Bf4 {[%clk 00:31:33]} {[%emt 00:06:39]} Rc6
{[%clk 00:24:19]} {[%emt 00:00:28]} 24. Rfe1 {[%clk 00:19:09]} {[%emt
00:12:55]} Bc7 {[%clk 00:08:12]} {[%emt 00:16:36]} 25. Qb3 {[%clk 00:14:39]}
{[%emt 00:04:59]} Qe7 {[%clk 00:06:23]} {[%emt 00:02:20]} 26. Rxe6 {[%clk
00:10:12]} {[%emt 00:04:57]} Rxe6 {[%clk 00:06:46]} {[%emt 00:00:08]} 27. Bxc7
{[%clk 00:09:35]} {[%emt 00:01:07]} Qxc7 {[%clk 00:07:12]} {[%emt 00:00:03]} 28.
Re1 {[%clk 00:09:18]} {[%emt 00:00:47]} Qd7 {[%clk 00:07:09]} {[%emt 00:00:33]}
29. Rxe6 {[%clk 00:08:42]} {[%emt 00:01:06]} Qxe6 {[%clk 00:07:35]} {[%emt
00:00:04]} 30. Qxb7+ {[%clk 00:09:06]} {[%emt 00:00:07]} Kg8 {[%clk 00:03:54]}
{[%emt 00:04:10]} 31. Qb8+ {[%clk 00:07:47]} {[%emt 00:01:49]} Kf7 {[%clk
00:01:47]} {[%emt 00:02:37]} 32. Qb7+ {[%clk 00:08:02]} {[%emt 00:00:15]} Kg8
{[%clk 00:01:30]} {[%emt 00:00:47]} 33. Qb8+ {[%clk 00:08:27]} {[%emt
00:00:06]} Kf7 {[%clk 00:01:06]} {[%emt 00:00:54]} 1/2-1/2

[Event "NJSK 2026 Jeugd A"]
[Site "Helmond, Netherlands"]
[Date "2026.04.26"]
[Round "2.6"]
[White "Fallaux, Storm"]
[Black "Arnold, Rhys"]
[Result "1/2-1/2"]
[TimeControl "90min/40moves + 30min + 30sec/move"]
[WhiteTitle "-"]
[BlackTitle "-"]
[WhiteFideId "1073095"]
[BlackFideId "1068849"]
[WhiteElo "2034"]
[BlackElo "2315"]

1. e4 {[%clk 01:30:57]} {[%emt 00:00:01]} c5 {[%clk 01:30:54]} {[%emt
00:00:06]} 2. Nf3 {[%clk 01:31:21]} {[%emt 00:00:06]} d6 {[%clk 01:31:19]}
{[%emt 00:00:05]} 3. d4 {[%clk 01:31:39]} {[%emt 00:00:12]} cxd4 {[%clk
01:31:45]} {[%emt 00:00:04]} 4. Nxd4 {[%clk 01:32:02]} {[%emt 00:00:07]} Nf6
{[%clk 01:31:51]} {[%emt 00:00:24]} 5. Bd3 {[%clk 01:32:23]} {[%emt 00:00:09]}
Nc6 {[%clk 01:32:06]} {[%emt 00:00:15]} 6. Ne2 {[%clk 01:32:45]} {[%emt
00:00:08]} g6 {[%clk 01:27:58]} {[%emt 00:04:39]} 7. c4 {[%clk 01:33:07]}
{[%emt 00:00:07]} Bg7 {[%clk 01:28:23]} {[%emt 00:00:04]} 8. Nbc3 {[%clk
01:33:33]} {[%emt 00:00:05]} O-O {[%clk 01:27:51]} {[%emt 00:01:02]} 9. O-O
{[%clk 01:33:53]} {[%emt 00:00:10]} Ne5 {[%clk 01:22:47]} {[%emt 00:05:35]} 10.
b3 {[%clk 01:34:12]} {[%emt 00:00:11]} b5 {[%clk 01:14:00]} {[%emt 00:09:17]}
11. cxb5 {[%clk 01:25:14]} {[%emt 00:09:28]} a6 {[%clk 01:13:42]} {[%emt
00:00:48]} 12. Bb2 {[%clk 01:18:31]} {[%emt 00:07:12]} Nxd3 {[%clk 01:03:39]}
{[%emt 00:10:33]} 13. Qxd3 {[%clk 01:18:34]} {[%emt 00:00:28]} Nd7 {[%clk
00:58:29]} {[%emt 00:05:40]} 14. Qd2 {[%clk 01:12:05]} {[%emt 00:06:58]} Bb7
{[%clk 00:50:05]} {[%emt 00:08:54]} 15. bxa6 {[%clk 01:11:08]} {[%emt
00:01:27]} Bxa6 {[%clk 00:42:32]} {[%emt 00:08:03]} 16. Nd5 {[%clk 01:04:52]}
{[%emt 00:06:46]} Bxb2 {[%clk 00:40:13]} {[%emt 00:02:49]} 17. Qxb2 {[%clk
01:04:51]} {[%emt 00:00:32]} Ne5 {[%clk 00:39:52]} {[%emt 00:00:51]} 18. Rfd1
{[%clk 00:53:46]} {[%emt 00:11:35]} Rb8 {[%clk 00:36:04]} {[%emt 00:04:18]} 19.
Qd2 {[%clk 00:46:39]} {[%emt 00:07:36]} Rc8 {[%clk 00:27:40]} {[%emt 00:08:54]}
20. Nd4 {[%clk 00:36:51]} {[%emt 00:10:18]} Bb7 {[%clk 00:24:59]} {[%emt
00:03:11]} 21. Rac1 {[%clk 00:33:16]} {[%emt 00:04:05]} Rxc1 {[%clk 00:24:10]}
{[%emt 00:01:19]} 22. Rxc1 {[%clk 00:33:31]} {[%emt 00:00:14]} e6 {[%clk
00:24:29]} {[%emt 00:00:11]} 23. Nc3 {[%clk 00:31:29]} {[%emt 00:02:34]} d5
{[%clk 00:19:46]} {[%emt 00:05:12]} 24. exd5 {[%clk 00:30:04]} {[%emt
00:01:55]} Bxd5 {[%clk 00:19:58]} {[%emt 00:00:18]} 25. Nxd5 {[%clk 00:30:07]}
{[%emt 00:00:27]} Qxd5 {[%clk 00:19:54]} {[%emt 00:00:34]} 26. Qc3 {[%clk
00:20:52]} {[%emt 00:09:44]} Rd8 {[%clk 00:18:58]} {[%emt 00:01:27]} 27. Nf3
{[%clk 00:17:48]} {[%emt 00:03:34]} Nxf3+ {[%clk 00:16:26]} {[%emt 00:03:02]}
28. Qxf3 {[%clk 00:16:10]} {[%emt 00:02:07]} 1/2-1/2

[Event "NJSK 2026 Jeugd A"]
[Site "Helmond, Netherlands"]
[Date "2026.04.26"]
[Round "2.7"]
[White "Ponomarev, Ivan"]
[Black "Garay, Enzo"]
[Result "1-0"]
[TimeControl "90min/40moves + 30min + 30sec/move"]
[WhiteTitle "-"]
[BlackTitle "-"]
[WhiteFideId "34411003"]
[BlackFideId "40104125"]
[WhiteElo "1983"]
[BlackElo "2098"]

1. c4 {[%clk 01:30:58]} e6 {[%clk 01:30:20]} {[%emt 00:00:40]} 2. g3 {[%clk
01:31:26]} {[%emt 00:00:02]} Nf6 {[%clk 01:30:39]} {[%emt 00:00:11]} 3. Bg2
{[%clk 01:31:54]} {[%emt 00:00:02]} d5 {[%clk 01:30:54]} {[%emt 00:00:15]} 4.
Nf3 {[%clk 01:32:21]} {[%emt 00:00:03]} dxc4 {[%clk 01:31:02]} {[%emt
00:00:22]} 5. Qa4+ {[%clk 01:32:43]} {[%emt 00:00:07]} Nbd7 {[%clk 01:31:29]}
{[%emt 00:00:04]} 6. Qxc4 {[%clk 01:33:02]} {[%emt 00:00:12]} c5 {[%clk
01:31:57]} {[%emt 00:00:01]} 7. d3 {[%clk 01:33:09]} {[%emt 00:00:23]} a6
{[%clk 01:32:18]} {[%emt 00:00:09]} 8. Qb3 {[%clk 01:33:32]} {[%emt 00:00:06]}
Ra7 {[%clk 01:28:41]} {[%emt 00:04:08]} 9. a4 {[%clk 01:31:03]} {[%emt
00:02:59]} b6 {[%clk 01:27:39]} {[%emt 00:01:32]} 10. O-O {[%clk 01:24:51]}
{[%emt 00:06:43]} Bb7 {[%clk 01:24:44]} {[%emt 00:03:25]} 11. Nbd2 {[%clk
01:23:24]} {[%emt 00:01:57]} Be7 {[%clk 01:21:44]} {[%emt 00:03:29]} 12. Nc4
{[%clk 01:23:03]} {[%emt 00:00:52]} O-O {[%clk 01:14:00]} {[%emt 00:08:13]} 13.
Rd1 {[%clk 01:10:22]} {[%emt 00:13:11]} Bd5 {[%clk 01:04:33]} {[%emt 00:09:57]}
14. Qc2 {[%clk 00:50:24]} {[%emt 00:20:29]} Qa8 {[%clk 00:55:07]} {[%emt
00:09:55]} 15. Bg5 {[%clk 00:34:38]} {[%emt 00:16:16]} Rc8 {[%clk 00:42:00]}
{[%emt 00:13:37]} 16. e4 {[%clk 00:30:11]} {[%emt 00:04:57]} Bc6 {[%clk
00:39:52]} {[%emt 00:02:38]} 17. Nfe5 {[%clk 00:21:25]} {[%emt 00:09:16]} Nxe5
{[%clk 00:36:11]} {[%emt 00:04:11]} 18. Nxe5 {[%clk 00:21:16]} {[%emt
00:00:40]} Be8 {[%clk 00:34:51]} {[%emt 00:01:49]} 19. Nc4 {[%clk 00:16:31]}
{[%emt 00:05:15]} Qb8 {[%clk 00:31:11]} {[%emt 00:04:10]} 20. a5 {[%clk
00:09:54]} {[%emt 00:07:07]} b5 {[%clk 00:29:21]} {[%emt 00:02:20]} 21. Nb6
{[%clk 00:09:13]} {[%emt 00:01:10]} Rd8 {[%clk 00:29:37]} {[%emt 00:00:15]} 22.
Be3 {[%clk 00:05:02]} {[%emt 00:04:41]} Qe5 {[%clk 00:19:21]} {[%emt 00:10:47]}
23. f4 {[%clk 00:04:32]} {[%emt 00:00:59]} Qh5 {[%clk 00:19:24]} {[%emt
00:00:27]} 24. h3 {[%clk 00:04:13]} {[%emt 00:00:50]} Qg6 {[%clk 00:17:37]}
{[%emt 00:02:17]} 25. g4 {[%clk 00:03:07]} {[%emt 00:01:36]} Nd7 {[%clk
00:13:47]} {[%emt 00:04:19]} 26. b4 {[%clk 00:01:37]} {[%emt 00:02:00]} e5
{[%clk 00:10:29]} {[%emt 00:03:48]} 27. Nd5 {[%clk 00:01:20]} {[%emt 00:00:48]}
Bf8 {[%clk 00:10:33]} {[%emt 00:00:26]} 28. bxc5 {[%clk 00:01:13]} {[%emt
00:00:37]} Rc8 {[%clk 00:09:48]} {[%emt 00:01:14]} 29. fxe5 {[%clk 00:01:01]}
{[%emt 00:00:42]} Nxe5 {[%clk 00:09:31]} {[%emt 00:00:47]} 30. d4 {[%clk
00:01:00]} {[%emt 00:00:32]} Nc4 {[%clk 00:09:59]} {[%emt 00:00:01]} 31. Bf2
{[%clk 00:01:17]} {[%emt 00:00:13]} Bc6 {[%clk 00:10:13]} {[%emt 00:00:17]} 32.
Nb6 {[%clk 00:01:18]} {[%emt 00:00:28]} Re8 {[%clk 00:09:02]} {[%emt 00:01:41]}
33. d5 {[%clk 00:01:28]} {[%emt 00:00:20]} Bb7 {[%clk 00:08:23]} {[%emt
00:01:09]} 34. c6 {[%clk 00:01:24]} {[%emt 00:00:34]} Bxc6 {[%clk 00:08:37]}
{[%emt 00:00:16]} 35. Nxc4 {[%clk 00:01:23]} {[%emt 00:00:32]} Bxd5 {[%clk
00:08:37]} {[%emt 00:00:30]} 36. Rxd5 {[%clk 00:00:58]} {[%emt 00:00:55]} Rc7
{[%clk 00:09:06]} 37. Ne5 {[%clk 00:00:48]} {[%emt 00:00:39]} 1-0

[Event "NJSK 2026 Jeugd A"]
[Site "Helmond, Netherlands"]
[Date "2026.04.26"]
[Round "2.8"]
[White "Van Arendonk, Polle"]
[Black "Xu, Alex Z"]
[Result "1-0"]
[TimeControl "90min/40moves + 30min + 30sec/move"]
[WhiteTitle "-"]
[BlackTitle "-"]
[WhiteFideId "1072048"]
[BlackFideId "40114775"]
[WhiteElo "2060"]
[BlackElo "1965"]

1. e4 {[%clk 01:30:58]} {[%emt 00:00:03]} c5 {[%clk 01:30:57]} {[%emt
00:00:02]} 2. Nf3 {[%clk 01:31:24]} {[%emt 00:00:04]} d6 {[%clk 01:31:24]}
{[%emt 00:00:04]} 3. d4 {[%clk 01:31:51]} {[%emt 00:00:03]} cxd4 {[%clk
01:31:52]} {[%emt 00:00:01]} 4. Nxd4 {[%clk 01:32:15]} {[%emt 00:00:06]} Nf6
{[%clk 01:32:18]} {[%emt 00:00:04]} 5. Nc3 {[%clk 01:32:40]} {[%emt 00:00:05]}
a6 {[%clk 01:32:44]} {[%emt 00:00:04]} 6. Be3 {[%clk 01:33:03]} {[%emt
00:00:06]} e5 {[%clk 01:33:09]} {[%emt 00:00:06]} 7. Nb3 {[%clk 01:33:28]}
{[%emt 00:00:05]} Be6 {[%clk 01:33:35]} {[%emt 00:00:04]} 8. f3 {[%clk
01:33:54]} {[%emt 00:00:04]} h5 {[%clk 01:33:58]} {[%emt 00:00:06]} 9. Qd2
{[%clk 01:34:03]} {[%emt 00:00:21]} Nbd7 {[%clk 01:34:23]} {[%emt 00:00:06]} 10.
Nd5 {[%clk 01:31:15]} {[%emt 00:03:18]} Bxd5 {[%clk 01:34:28]} {[%emt
00:00:24]} 11. exd5 {[%clk 01:31:40]} {[%emt 00:00:06]} g6 {[%clk 01:34:43]}
{[%emt 00:00:15]} 12. Be2 {[%clk 01:30:39]} {[%emt 00:01:31]} Bg7 {[%clk
01:33:40]} {[%emt 00:01:33]} 13. Na5 {[%clk 01:25:36]} {[%emt 00:05:33]} Qc7
{[%clk 01:33:49]} {[%emt 00:00:21]} 14. O-O {[%clk 01:25:21]} {[%emt 00:00:45]}
b6 {[%clk 01:33:30]} {[%emt 00:00:49]} 15. Nc4 {[%clk 01:22:44]} {[%emt
00:03:07]} O-O {[%clk 01:30:44]} {[%emt 00:03:16]} 16. a4 {[%clk 01:22:34]}
{[%emt 00:00:41]} Rac8 {[%clk 01:27:52]} {[%emt 00:03:21]} 17. Na3 {[%clk
01:10:51]} {[%emt 00:12:13]} Qb7 {[%clk 01:14:21]} {[%emt 00:14:00]} 18. Rfd1
{[%clk 01:04:41]} {[%emt 00:06:41]} Rfe8 {[%clk 01:03:25]} {[%emt 00:11:26]} 19.
Nc4 {[%clk 00:56:58]} {[%emt 00:08:13]} Bf8 {[%clk 01:02:01]} {[%emt 00:01:53]}
20. Ra3 {[%clk 00:53:26]} {[%emt 00:04:03]} e4 {[%clk 00:52:43]} {[%emt
00:09:48]} 21. Rb3 {[%clk 00:42:17]} {[%emt 00:11:39]} exf3 {[%clk 00:44:02]}
{[%emt 00:09:11]} 22. gxf3 {[%clk 00:42:42]} {[%emt 00:00:05]} Nc5 {[%clk
00:36:02]} {[%emt 00:08:31]} 23. Rxb6 {[%clk 00:42:09]} {[%emt 00:01:02]} Qc7
{[%clk 00:35:50]} {[%emt 00:00:41]} 24. Rc6 {[%clk 00:39:12]} {[%emt 00:03:28]}
Qb8 {[%clk 00:32:56]} {[%emt 00:03:23]} 25. b4 {[%clk 00:30:38]} {[%emt
00:09:05]} Rxc6 {[%clk 00:28:32]} {[%emt 00:04:54]} 26. dxc6 {[%clk 00:30:57]}
{[%emt 00:00:11]} Nxa4 {[%clk 00:22:57]} {[%emt 00:06:05]} 27. Ra1 {[%clk
00:25:19]} {[%emt 00:06:08]} d5 {[%clk 00:22:33]} {[%emt 00:00:54]} 28. Rxa4
{[%clk 00:24:56]} {[%emt 00:00:54]} dxc4 {[%clk 00:22:45]} {[%emt 00:00:18]} 29.
Bxc4 {[%clk 00:23:15]} {[%emt 00:02:11]} Qe5 {[%clk 00:19:56]} {[%emt
00:03:19]} 30. Bf4 {[%clk 00:20:47]} {[%emt 00:02:58]} Qf5 {[%clk 00:17:42]}
{[%emt 00:02:43]} 31. c7 {[%clk 00:17:44]} {[%emt 00:03:34]} Nd7 {[%clk
00:08:50]} {[%emt 00:09:22]} 32. Ra5 {[%clk 00:07:17]} {[%emt 00:10:58]} Qh3
{[%clk 00:04:14]} {[%emt 00:05:05]} 33. Qg2 {[%clk 00:06:27]} {[%emt 00:01:19]}
Qxg2+ {[%clk 00:02:11]} {[%emt 00:02:34]} 34. Kxg2 {[%clk 00:06:55]} {[%emt
00:00:02]} Bxb4 {[%clk 00:01:38]} {[%emt 00:01:03]} 35. Rd5 {[%clk 00:05:57]}
{[%emt 00:01:27]} Nb6 {[%clk 00:00:43]} {[%emt 00:01:26]} 36. Rd8 {[%clk
00:06:20]} {[%emt 00:00:07]} Kf8 {[%clk 00:00:52]} {[%emt 00:00:21]} 37. Bxa6
{[%clk 00:06:27]} {[%emt 00:00:23]} 1-0